[Event "Titled Tuesday Blitz August 3 2021"]
[White "Alavkin, Arseny"]
[Black "Bluebaum, Matthias"]
[WhiteFideId "4120612"]
[BlackFideId "24651516"]
[WhiteElo "2401"]
[BlackElo "2685"]
[Result "1/2-1/2"]
[Round "05"]
[TimeControl "180+1"]
[Date "2021.08.03"]
[WhiteClock "0:00:10"]
[BlackClock "0:00:09"]

1. d4 {[%clk 0:03:00]}  Nf6 {[%clk 0:02:59]} 2. Bf4 {[%clk 0:03:00]}  d5 {[%clk 0:02:57]} 3. e3 {[%clk 0:03:00]}  c5 {[%clk 0:02:58]} 4. Nf3 {[%clk 0:03:00]}  Nc6 {[%clk 0:02:58]} 5. Nbd2 {[%clk 0:03:00]}  cxd4 {[%clk 0:02:58]} 6. exd4 {[%clk 0:03:00]}  Qb6 {[%clk 0:02:59]} 7. Nb3 {[%clk 0:03:00]}  Bf5 {[%clk 0:03:00]} 8. c3 {[%clk 0:02:59]}  e6 {[%clk 0:03:00]} 9. a4 {[%clk 0:02:59]}  a6 {[%clk 0:03:00]} 10. a5 {[%clk 0:03:00]}  Qd8 {[%clk 0:03:00]} 11. Bd3 {[%clk 0:03:00]}  Bxd3 {[%clk 0:03:00]} 12. Qxd3 {[%clk 0:03:01]}  Bd6 {[%clk 0:03:00]} 13. Bxd6 {[%clk 0:03:00]}  Qxd6 {[%clk 0:03:01]} 14. O-O {[%clk 0:03:01]}  Qc7 {[%clk 0:03:01]} 15. Rfe1 {[%clk 0:03:01]}  O-O {[%clk 0:03:00]} 16. Ne5 {[%clk 0:03:01]}  Nxe5 {[%clk 0:03:00]} 17. Rxe5 {[%clk 0:03:02]}  b6 {[%clk 0:02:56]} 18. Re2 {[%clk 0:03:00]}  Nd7 {[%clk 0:02:53]} 19. axb6 {[%clk 0:02:54]}  Qxb6 {[%clk 0:02:53]} 20. Nc1 {[%clk 0:02:54]}  a5 {[%clk 0:02:50]} 21. Qd2 {[%clk 0:02:50]}  a4 {[%clk 0:02:36]} 22. Nd3 {[%clk 0:02:49]}  Ra7 {[%clk 0:02:37]} 23. Ra3 {[%clk 0:02:48]}  Qb5 {[%clk 0:02:35]} 24. Qc2 {[%clk 0:02:44]}  Nb6 {[%clk 0:02:34]} 25. Nc5 {[%clk 0:02:39]}  Rfa8 {[%clk 0:02:29]} 26. Re1 {[%clk 0:02:36]}  Nc4 {[%clk 0:02:27]} 27. Ra2 {[%clk 0:02:36]}  a3 {[%clk 0:02:19]} 28. b3 {[%clk 0:02:34]}  Nb6 {[%clk 0:02:16]} 29. Rea1 {[%clk 0:02:33]}  g6 {[%clk 0:01:55]} 30. Qc1 {[%clk 0:02:24]}  e5 {[%clk 0:01:25]} 31. Rxa3 {[%clk 0:02:17]}  Rxa3 {[%clk 0:01:25]} 32. Rxa3 {[%clk 0:02:18]}  Rxa3 {[%clk 0:01:25]} 33. Qxa3 {[%clk 0:02:19]}  Qe2 {[%clk 0:01:26]} 34. Qc1 {[%clk 0:02:18]}  e4 {[%clk 0:01:16]} 35. g3 {[%clk 0:02:13]}  h5 {[%clk 0:01:13]} 36. Qe3 {[%clk 0:02:12]}  Qd1+ {[%clk 0:01:12]} 37. Kg2 {[%clk 0:02:13]}  h4 {[%clk 0:01:11]} 38. gxh4 {[%clk 0:02:09]}  Nc8 {[%clk 0:01:11]} 39. f3 {[%clk 0:01:54]}  Nd6 {[%clk 0:01:03]} 40. fxe4 {[%clk 0:01:52]}  dxe4 {[%clk 0:01:03]} 41. Nxe4 {[%clk 0:01:42]}  Nf5 {[%clk 0:01:03]} 42. Qf4 {[%clk 0:01:41]}  Qe2+ {[%clk 0:00:55]} 43. Kh3 {[%clk 0:01:32]}  Ne3 {[%clk 0:00:45]} 44. Qb8+ {[%clk 0:01:18]}  Kh7 {[%clk 0:00:24]} 45. Ng5+ {[%clk 0:01:13]}  Kg7 {[%clk 0:00:24]} 46. Qe5+ {[%clk 0:01:12]}  Kf8 {[%clk 0:00:25]} 47. Qd6+ {[%clk 0:00:52]}  Kg8 {[%clk 0:00:22]} 48. Qb8+ {[%clk 0:00:52]}  Kg7 {[%clk 0:00:22]} 49. Qe5+ {[%clk 0:00:51]}  Kf8 {[%clk 0:00:23]} 50. Qe4 {[%clk 0:00:40]}  Qf1+ {[%clk 0:00:20]} 51. Kg3 {[%clk 0:00:37]}  Nf5+ {[%clk 0:00:21]} 52. Kg4 {[%clk 0:00:33]}  Nh6+ {[%clk 0:00:21]} 53. Kg3 {[%clk 0:00:32]}  Nf5+ {[%clk 0:00:21]} 54. Kg4 {[%clk 0:00:32]}  Qf2 {[%clk 0:00:21]} 55. Nf3 {[%clk 0:00:24]}  Qg2+ {[%clk 0:00:20]} 56. Kf4 {[%clk 0:00:24]}  Qb2 {[%clk 0:00:15]} 57. c4 {[%clk 0:00:21]}  Qc1+ {[%clk 0:00:15]} 58. Ke5 {[%clk 0:00:20]}  Qa3 {[%clk 0:00:15]} 59. c5 {[%clk 0:00:20]}  Qa7 {[%clk 0:00:14]} 60. Kf4 {[%clk 0:00:20]}  Qb8+ {[%clk 0:00:15]} 61. Kg4 {[%clk 0:00:20]}  Nh6+ {[%clk 0:00:14]} 62. Kh3 {[%clk 0:00:20]}  Qxb3 {[%clk 0:00:14]} 63. c6 {[%clk 0:00:20]}  Qc4 {[%clk 0:00:14]} 64. Kg3 {[%clk 0:00:20]}  Nf5+ {[%clk 0:00:15]} 65. Kf4 {[%clk 0:00:20]}  Ne7 {[%clk 0:00:14]} 66. Ne5 {[%clk 0:00:18]}  Qf1+ {[%clk 0:00:14]} 67. Qf3 {[%clk 0:00:18]}  Qc1+ {[%clk 0:00:14]} 68. Kg3 {[%clk 0:00:18]}  Nf5+ {[%clk 0:00:14]} 69. Kg4 {[%clk 0:00:17]}  Qg1+ {[%clk 0:00:12]} 70. Kh3 {[%clk 0:00:16]}  Qxd4 {[%clk 0:00:12]} 71. c7 {[%clk 0:00:10]}  Qxh4+ {[%clk 0:00:11]} 72. Kg2 {[%clk 0:00:11]}  Qg5+ {[%clk 0:00:12]} 73. Kf2 {[%clk 0:00:06]}  Qd2+ {[%clk 0:00:12]} 74. Qe2 {[%clk 0:00:05]}  Qd4+ {[%clk 0:00:11]} 75. Kg2 {[%clk 0:00:03]}  Qc3 {[%clk 0:00:11]} 76. Nd7+ {[%clk 0:00:02]}  Kg7 {[%clk 0:00:11]} 77. Qe5+ {[%clk 0:00:02]}  Qxe5 {[%clk 0:00:12]} 78. Nxe5 {[%clk 0:00:03]}  Ne7 {[%clk 0:00:12]} 79. Nc6 {[%clk 0:00:03]}  Nc8 {[%clk 0:00:12]} 80. Kf3 {[%clk 0:00:03]}  Kf6 {[%clk 0:00:13]} 81. Kg4 {[%clk 0:00:04]}  Ke6 {[%clk 0:00:11]} 82. Kg5 {[%clk 0:00:05]}  Kd7 {[%clk 0:00:11]} 83. Ne5+ {[%clk 0:00:05]}  Ke6 {[%clk 0:00:11]} 84. Nc6 {[%clk 0:00:05]}  Kd6 {[%clk 0:00:11]} 85. Nd8 {[%clk 0:00:05]}  Ke7 {[%clk 0:00:10]} 86. h4 {[%clk 0:00:04]}  Nd6 {[%clk 0:00:06]} 87. Nc6+ {[%clk 0:00:02]}  Kd7 {[%clk 0:00:05]} 88. Ne5+ {[%clk 0:00:03]}  Kxc7 {[%clk 0:00:06]} 89. Nxf7 {[%clk 0:00:04]}  Nxf7+ {[%clk 0:00:06]} 90. Kxg6 {[%clk 0:00:05]}  Ne5+ {[%clk 0:00:06]} 91. Kf6 {[%clk 0:00:05]}  Ng4+ {[%clk 0:00:06]} 92. Kf5 {[%clk 0:00:06]}  Nh6+ {[%clk 0:00:06]} 93. Kg6 {[%clk 0:00:07]}  Ng4 {[%clk 0:00:06]} 94. Kg5 {[%clk 0:00:08]}  Ne5 {[%clk 0:00:07]} 95. h5 {[%clk 0:00:09]}  Kd6 {[%clk 0:00:07]} 96. Kf6 {[%clk 0:00:08]}  Ng4+ {[%clk 0:00:07]} 97. Kg5 {[%clk 0:00:08]}  Ne5 {[%clk 0:00:08]} 98. h6 {[%clk 0:00:09]}  Nf7+ {[%clk 0:00:08]} 99. Kg6 {[%clk 0:00:10]}  Nxh6 {[%clk 0:00:09]} 1/2-1/2


[Site "https://www.chess.com"]

[Event "Titled Tuesday Blitz August 3 2021"]
[White "Andreikin, Dmitry"]
[Black "Hjartarson, Johann"]
[WhiteFideId "4158814"]
[BlackFideId "2300044"]
[WhiteElo "2782"]
[BlackElo "2502"]
[Result "1-0"]
[Round "05"]
[TimeControl "180+1"]
[Date "2021.08.03"]
[WhiteClock "0:00:55"]
[BlackClock "0:00:39"]

1. Nf3 {[%clk 0:03:00]}  d6 {[%clk 0:02:57]} 2. d4 {[%clk 0:02:58]}  Bg4 {[%clk 0:02:56]} 3. e4 {[%clk 0:02:57]}  Nf6 {[%clk 0:02:56]} 4. Nc3 {[%clk 0:02:54]}  e6 {[%clk 0:02:55]} 5. h3 {[%clk 0:02:48]}  Bh5 {[%clk 0:02:54]} 6. Qe2 {[%clk 0:02:48]}  c6 {[%clk 0:02:48]} 7. Bf4 {[%clk 0:02:46]}  Be7 {[%clk 0:02:47]} 8. O-O-O {[%clk 0:02:45]}  d5 {[%clk 0:02:41]} 9. g4 {[%clk 0:02:36]}  Bg6 {[%clk 0:02:41]} 10. Ne5 {[%clk 0:02:23]}  Nxe4 {[%clk 0:02:30]} 11. Nxe4 {[%clk 0:02:21]}  Bxe4 {[%clk 0:02:30]} 12. f3 {[%clk 0:02:21]}  Bg6 {[%clk 0:02:29]} 13. h4 {[%clk 0:02:20]}  f6 {[%clk 0:01:54]} 14. Nxg6 {[%clk 0:02:18]}  hxg6 {[%clk 0:01:54]} 15. Qxe6 {[%clk 0:02:17]}  Nd7 {[%clk 0:01:54]} 16. Bd3 {[%clk 0:02:06]}  Nf8 {[%clk 0:01:54]} 17. Qe2 {[%clk 0:02:07]}  Kf7 {[%clk 0:01:54]} 18. h5 {[%clk 0:02:03]}  Bd6 {[%clk 0:01:44]} 19. Bxd6 {[%clk 0:01:41]}  Qxd6 {[%clk 0:01:43]} 20. Rde1 {[%clk 0:01:41]}  gxh5 {[%clk 0:01:35]} 21. gxh5 {[%clk 0:01:39]}  Rh6 {[%clk 0:01:32]} 22. Kb1 {[%clk 0:01:31]}  Qd7 {[%clk 0:01:06]} 23. Rhg1 {[%clk 0:00:55]}  Rxh5 {[%clk 0:00:57]} 24. f4 {[%clk 0:00:56]}  Re8 {[%clk 0:00:39]} 25. Qxh5+ {[%clk 0:00:55]} 1-0


[Site "https://www.chess.com"]

[Event "Titled Tuesday Blitz August 3 2021"]
[White "Andrews, Todd"]
[Black "Weetik, Vjacheslav"]
[WhiteFideId "2012456"]
[BlackFideId "4153472"]
[WhiteElo "2433"]
[BlackElo "2469"]
[Result "0-1"]
[Round "05"]
[TimeControl "180+1"]
[Date "2021.08.03"]
[WhiteClock "0:00:07"]
[BlackClock "0:00:05"]

1. d4 {[%clk 0:03:00]}  d5 {[%clk 0:02:56]} 2. c4 {[%clk 0:03:00]}  e6 {[%clk 0:02:53]} 3. Nc3 {[%clk 0:03:00]}  c6 {[%clk 0:02:53]} 4. e3 {[%clk 0:02:57]}  Bd6 {[%clk 0:02:50]} 5. g3 {[%clk 0:02:51]}  f5 {[%clk 0:02:49]} 6. Bg2 {[%clk 0:02:51]}  Nf6 {[%clk 0:02:49]} 7. Nf3 {[%clk 0:02:48]}  O-O {[%clk 0:02:49]} 8. O-O {[%clk 0:02:48]}  Nbd7 {[%clk 0:02:49]} 9. b3 {[%clk 0:02:47]}  Ne4 {[%clk 0:02:49]} 10. Ne2 {[%clk 0:02:47]}  b6 {[%clk 0:02:19]} 11. Bb2 {[%clk 0:02:46]}  a5 {[%clk 0:02:16]} 12. Nf4 {[%clk 0:02:45]}  Qe7 {[%clk 0:02:11]} 13. Nd3 {[%clk 0:02:45]}  a4 {[%clk 0:02:09]} 14. Nfe5 {[%clk 0:02:07]}  Bxe5 {[%clk 0:02:01]} 15. dxe5 {[%clk 0:02:02]}  a3 {[%clk 0:02:00]} 16. Bc1 {[%clk 0:01:56]}  Ba6 {[%clk 0:01:56]} 17. Qc2 {[%clk 0:01:55]}  b5 {[%clk 0:01:20]} 18. f3 {[%clk 0:01:27]}  bxc4 {[%clk 0:01:12]} 19. bxc4 {[%clk 0:01:28]}  dxc4 {[%clk 0:01:10]} 20. Nf4 {[%clk 0:01:28]}  Ng5 {[%clk 0:01:01]} 21. Qc3 {[%clk 0:01:24]}  Bb5 {[%clk 0:01:00]} 22. Rd1 {[%clk 0:01:21]}  Nf7 {[%clk 0:00:54]} 23. Rb1 {[%clk 0:00:49]}  Ndxe5 {[%clk 0:00:52]} 24. Rb4 {[%clk 0:00:48]}  Qf6 {[%clk 0:00:38]} 25. Kh1 {[%clk 0:00:45]}  Rfd8 {[%clk 0:00:32]} 26. Re1 {[%clk 0:00:29]}  Nd3 {[%clk 0:00:30]} 27. Qxf6 {[%clk 0:00:29]}  gxf6 {[%clk 0:00:31]} 28. Nxd3 {[%clk 0:00:29]}  cxd3 {[%clk 0:00:27]} 29. Bd2 {[%clk 0:00:29]}  Ne5 {[%clk 0:00:25]} 30. Rc1 {[%clk 0:00:27]}  Ra4 {[%clk 0:00:23]} 31. Rxa4 {[%clk 0:00:26]}  Bxa4 {[%clk 0:00:23]} 32. f4 {[%clk 0:00:27]}  Ng4 {[%clk 0:00:23]} 33. Bf3 {[%clk 0:00:26]}  Nf2+ {[%clk 0:00:23]} 34. Kg2 {[%clk 0:00:26]}  Ne4 {[%clk 0:00:24]} 35. Bxe4 {[%clk 0:00:23]}  fxe4 {[%clk 0:00:24]} 36. Rb1 {[%clk 0:00:20]}  c5 {[%clk 0:00:22]} 37. Rb6 {[%clk 0:00:19]}  c4 {[%clk 0:00:20]} 38. Ra6 {[%clk 0:00:19]}  Rc8 {[%clk 0:00:18]} 39. Bc3 {[%clk 0:00:15]}  Bc6 {[%clk 0:00:13]} 40. Ra7 {[%clk 0:00:14]}  Rb8 {[%clk 0:00:13]} 41. Bxf6 {[%clk 0:00:14]}  Rb2+ {[%clk 0:00:12]} 42. Kh3 {[%clk 0:00:14]}  d2 {[%clk 0:00:11]} 43. Rg7+ {[%clk 0:00:11]}  Kf8 {[%clk 0:00:11]} 44. Rxh7 {[%clk 0:00:10]}  d1=Q {[%clk 0:00:11]} 45. Rh8+ {[%clk 0:00:10]}  Kf7 {[%clk 0:00:11]} 46. Be5 {[%clk 0:00:10]}  Qe2 {[%clk 0:00:06]} 47. Rh7+ {[%clk 0:00:07]}  Ke8 {[%clk 0:00:05]} 48. Rh8+ {[%clk 0:00:08]}  Kd7 {[%clk 0:00:05]} 49. Rh7+ {[%clk 0:00:08]}  Kc8 {[%clk 0:00:04]} 50. Rc7+ {[%clk 0:00:09]}  Kd8 {[%clk 0:00:05]} 51. Rxc6 {[%clk 0:00:07]}  Qh5# {[%clk 0:00:05]} 0-1


[Site "https://www.chess.com"]

[Event "Titled Tuesday Blitz August 3 2021"]
[White "Assaubayeva, Bibisara"]
[Black "Baskin, Robert"]
[WhiteFideId "13708694"]
[BlackFideId "24662402"]
[WhiteElo "2232"]
[BlackElo "2462"]
[Result "1-0"]
[Round "05"]
[TimeControl "180+1"]
[Date "2021.08.03"]
[WhiteClock "0:01:01"]
[BlackClock "0:00:01"]

1. d4 {[%clk 0:02:58]}  Nf6 {[%clk 0:02:58]} 2. c4 {[%clk 0:02:57]}  e6 {[%clk 0:02:58]} 3. Nf3 {[%clk 0:02:57]}  b6 {[%clk 0:02:57]} 4. g3 {[%clk 0:02:55]}  Ba6 {[%clk 0:02:56]} 5. b3 {[%clk 0:02:54]}  Bb4+ {[%clk 0:02:56]} 6. Bd2 {[%clk 0:02:53]}  Be7 {[%clk 0:02:55]} 7. Bg2 {[%clk 0:02:51]}  O-O {[%clk 0:02:37]} 8. O-O {[%clk 0:02:50]}  d5 {[%clk 0:02:36]} 9. Bf4 {[%clk 0:02:38]}  c6 {[%clk 0:02:10]} 10. Nfd2 {[%clk 0:02:36]}  Nbd7 {[%clk 0:02:06]} 11. Nc3 {[%clk 0:02:33]}  Rc8 {[%clk 0:02:00]} 12. e4 {[%clk 0:02:29]}  dxe4 {[%clk 0:01:49]} 13. Ndxe4 {[%clk 0:02:28]}  Nxe4 {[%clk 0:01:37]} 14. Nxe4 {[%clk 0:02:29]}  Nf6 {[%clk 0:01:38]} 15. Re1 {[%clk 0:02:17]}  Nxe4 {[%clk 0:01:24]} 16. Bxe4 {[%clk 0:02:14]}  Bf6 {[%clk 0:01:19]} 17. Be5 {[%clk 0:02:08]}  c5 {[%clk 0:01:19]} 18. Qh5 {[%clk 0:01:59]}  g6 {[%clk 0:01:02]} 19. Qf3 {[%clk 0:01:59]}  Bxe5 {[%clk 0:00:54]} 20. dxe5 {[%clk 0:02:00]}  Qe7 {[%clk 0:00:55]} 21. h4 {[%clk 0:01:57]}  h5 {[%clk 0:00:50]} 22. Rad1 {[%clk 0:01:52]}  Rcd8 {[%clk 0:00:50]} 23. Qf4 {[%clk 0:01:42]}  Kg7 {[%clk 0:00:45]} 24. Rd6 {[%clk 0:01:39]}  Rxd6 {[%clk 0:00:21]} 25. exd6 {[%clk 0:01:39]}  Qf6 {[%clk 0:00:22]} 26. Qg5 {[%clk 0:01:20]}  Qxg5 {[%clk 0:00:21]} 27. hxg5 {[%clk 0:01:20]}  Rd8 {[%clk 0:00:22]} 28. Rd1 {[%clk 0:01:19]}  f5 {[%clk 0:00:19]} 29. gxf6+ {[%clk 0:01:13]}  Kxf6 {[%clk 0:00:19]} 30. f4 {[%clk 0:01:14]}  g5 {[%clk 0:00:13]} 31. fxg5+ {[%clk 0:01:08]}  Kxg5 {[%clk 0:00:13]} 32. Bc6 {[%clk 0:01:07]}  Kf6 {[%clk 0:00:12]} 33. d7 {[%clk 0:01:07]}  e5 {[%clk 0:00:09]} 34. Kg2 {[%clk 0:01:06]}  Ke7 {[%clk 0:00:09]} 35. Kh3 {[%clk 0:01:04]}  Rg8 {[%clk 0:00:08]} 36. Rd5 {[%clk 0:01:03]}  Kd8 {[%clk 0:00:05]} 37. Rxe5 {[%clk 0:01:02]}  Kc7 {[%clk 0:00:02]} 38. Re8 {[%clk 0:01:02]}  Kxc6 {[%clk 0:00:01]} 39. d8=Q {[%clk 0:01:01]} 1-0


[Site "https://www.chess.com"]

[Event "Titled Tuesday Blitz August 3 2021"]
[White "Ataman, Alper Efe"]
[Black "Sarana, Alexey"]
[WhiteFideId "6301606"]
[BlackFideId "24133795"]
[WhiteElo "2023"]
[BlackElo "2646"]
[Result "0-1"]
[Round "05"]
[TimeControl "180+1"]
[Date "2021.08.03"]
[WhiteClock "0:00:04"]
[BlackClock "0:01:44"]

1. d4 {[%clk 0:02:58]}  Nf6 {[%clk 0:02:59]} 2. c4 {[%clk 0:02:55]}  e6 {[%clk 0:02:59]} 3. Nc3 {[%clk 0:02:54]}  Bb4 {[%clk 0:02:58]} 4. g3 {[%clk 0:02:54]}  O-O {[%clk 0:02:57]} 5. Bg2 {[%clk 0:02:54]}  d5 {[%clk 0:02:58]} 6. Nf3 {[%clk 0:02:52]}  dxc4 {[%clk 0:02:58]} 7. O-O {[%clk 0:02:52]}  Nc6 {[%clk 0:02:59]} 8. Bg5 {[%clk 0:02:46]}  Rb8 {[%clk 0:02:54]} 9. e4 {[%clk 0:02:40]}  Be7 {[%clk 0:02:53]} 10. Bxf6 {[%clk 0:02:31]}  Bxf6 {[%clk 0:02:53]} 11. e5 {[%clk 0:02:32]}  Be7 {[%clk 0:02:53]} 12. Qd2 {[%clk 0:02:22]}  b5 {[%clk 0:02:53]} 13. Rad1 {[%clk 0:02:21]}  Nb4 {[%clk 0:02:52]} 14. Ne1 {[%clk 0:02:06]}  a6 {[%clk 0:02:50]} 15. a3 {[%clk 0:02:04]}  Nd5 {[%clk 0:02:47]} 16. Nxd5 {[%clk 0:02:00]}  exd5 {[%clk 0:02:48]} 17. f4 {[%clk 0:02:00]}  f5 {[%clk 0:02:47]} 18. Nc2 {[%clk 0:01:46]}  c6 {[%clk 0:02:44]} 19. h3 {[%clk 0:01:40]}  a5 {[%clk 0:02:44]} 20. Kh2 {[%clk 0:01:36]}  b4 {[%clk 0:02:44]} 21. axb4 {[%clk 0:01:36]}  axb4 {[%clk 0:02:45]} 22. Rg1 {[%clk 0:01:35]}  Kh8 {[%clk 0:02:45]} 23. Bf3 {[%clk 0:01:31]}  Be6 {[%clk 0:02:44]} 24. g4 {[%clk 0:01:30]}  Qd7 {[%clk 0:02:43]} 25. Ne3 {[%clk 0:01:27]}  fxg4 {[%clk 0:02:43]} 26. Nxg4 {[%clk 0:01:15]}  Bh4 {[%clk 0:02:41]} 27. Rdf1 {[%clk 0:00:54]}  g6 {[%clk 0:02:35]} 28. Bd1 {[%clk 0:00:42]}  Bf5 {[%clk 0:02:34]} 29. Bc2 {[%clk 0:00:31]}  b3 {[%clk 0:02:33]} 30. Bxf5 {[%clk 0:00:29]}  Qxf5 {[%clk 0:02:34]} 31. Ne3 {[%clk 0:00:29]}  Qh5 {[%clk 0:02:10]} 32. Rg4 {[%clk 0:00:23]}  Be7 {[%clk 0:02:10]} 33. Qf2 {[%clk 0:00:17]}  Rf7 {[%clk 0:02:09]} 34. f5 {[%clk 0:00:17]}  gxf5 {[%clk 0:02:07]} 35. Nxf5 {[%clk 0:00:17]}  Rbf8 {[%clk 0:02:04]} 36. Rf4 {[%clk 0:00:17]}  Bg5 {[%clk 0:02:00]} 37. Rf3 {[%clk 0:00:17]}  Qg6 {[%clk 0:01:57]} 38. Nh4 {[%clk 0:00:05]}  Bxh4 {[%clk 0:01:45]} 39. Rxf7 {[%clk 0:00:03]}  Bxf2 {[%clk 0:01:45]} 40. Rxf8+ {[%clk 0:00:03]}  Kg7 {[%clk 0:01:45]} 41. R1xf2 {[%clk 0:00:04]}  c3 {[%clk 0:01:45]} 42. bxc3 {[%clk 0:00:04]}  b2 {[%clk 0:01:45]} 43. Rb8 {[%clk 0:00:03]}  b1=Q {[%clk 0:01:45]} 44. Rg2 {[%clk 0:00:04]}  Qxb8 {[%clk 0:01:44]} 0-1


[Site "https://www.chess.com"]

[Event "Titled Tuesday Blitz August 3 2021"]
[White "Chen, Max"]
[Black "Ulko, Jaroslav"]
[WhiteFideId "2622440"]
[BlackFideId "4116658"]
[WhiteElo "2434"]
[BlackElo "2304"]
[Result "1-0"]
[Round "05"]
[TimeControl "180+1"]
[Date "2021.08.03"]
[WhiteClock "0:00:22"]
[BlackClock "0:00:46"]

1. e4 {[%clk 0:02:45]}  c5 {[%clk 0:02:59]} 2. Nf3 {[%clk 0:02:43]}  e6 {[%clk 0:02:59]} 3. d4 {[%clk 0:02:43]}  cxd4 {[%clk 0:03:00]} 4. Nxd4 {[%clk 0:02:43]}  Nc6 {[%clk 0:03:00]} 5. Nc3 {[%clk 0:02:37]}  Qc7 {[%clk 0:03:00]} 6. Be3 {[%clk 0:02:34]}  a6 {[%clk 0:03:01]} 7. Qd2 {[%clk 0:02:33]}  Nf6 {[%clk 0:03:01]} 8. f3 {[%clk 0:02:29]}  Be7 {[%clk 0:03:01]} 9. O-O-O {[%clk 0:02:28]}  b5 {[%clk 0:03:01]} 10. g4 {[%clk 0:02:24]}  Nxd4 {[%clk 0:02:59]} 11. Bxd4 {[%clk 0:02:23]}  Bb7 {[%clk 0:02:56]} 12. g5 {[%clk 0:02:10]}  Nh5 {[%clk 0:02:55]} 13. Bh3 {[%clk 0:02:10]}  O-O {[%clk 0:02:42]} 14. Bg4 {[%clk 0:02:05]}  Nf4 {[%clk 0:02:38]} 15. h4 {[%clk 0:02:04]}  b4 {[%clk 0:02:29]} 16. Ne2 {[%clk 0:01:50]}  Nxe2+ {[%clk 0:02:27]} 17. Qxe2 {[%clk 0:01:49]}  d5 {[%clk 0:02:20]} 18. e5 {[%clk 0:01:42]}  Bc5 {[%clk 0:02:18]} 19. h5 {[%clk 0:01:38]}  Bxd4 {[%clk 0:01:51]} 20. Rxd4 {[%clk 0:01:35]}  Qb6 {[%clk 0:01:49]} 21. Qe3 {[%clk 0:01:30]}  Rac8 {[%clk 0:01:38]} 22. g6 {[%clk 0:01:26]}  fxg6 {[%clk 0:01:20]} 23. hxg6 {[%clk 0:01:22]}  h6 {[%clk 0:01:20]} 24. Rxh6 {[%clk 0:00:40]}  gxh6 {[%clk 0:01:11]} 25. Qxh6 {[%clk 0:00:39]}  Rc7 {[%clk 0:01:12]} 26. g7 {[%clk 0:00:29]}  Rxg7 {[%clk 0:00:48]} 27. Bxe6+ {[%clk 0:00:27]}  Qxe6 {[%clk 0:00:48]} 28. Qxe6+ {[%clk 0:00:26]}  Rff7 {[%clk 0:00:48]} 29. Rf4 {[%clk 0:00:22]}  d4 {[%clk 0:00:46]} 30. Qe8+ {[%clk 0:00:22]} 1-0


[Site "https://www.chess.com"]

[Event "Titled Tuesday Blitz August 3 2021"]
[White "Damjanovic, Vladimir"]
[Black "Alavi, Sayed Javad"]
[WhiteFideId "903795"]
[BlackFideId "12500607"]
[WhiteElo "2374"]
[BlackElo "2495"]
[Result "0-1"]
[Round "05"]
[TimeControl "180+1"]
[Date "2021.08.03"]
[WhiteClock "0:00:08"]
[BlackClock "0:00:12"]

1. e4 {[%clk 0:03:00]}  c5 {[%clk 0:02:59]} 2. Nf3 {[%clk 0:03:01]}  e6 {[%clk 0:03:00]} 3. g3 {[%clk 0:03:00]}  Nc6 {[%clk 0:02:54]} 4. Bg2 {[%clk 0:03:01]}  Nf6 {[%clk 0:02:52]} 5. Qe2 {[%clk 0:03:01]}  e5 {[%clk 0:02:53]} 6. O-O {[%clk 0:03:01]}  Be7 {[%clk 0:02:52]} 7. c3 {[%clk 0:03:01]}  O-O {[%clk 0:02:52]} 8. Na3 {[%clk 0:03:01]}  Re8 {[%clk 0:02:51]} 9. d3 {[%clk 0:03:01]}  Bf8 {[%clk 0:02:38]} 10. Bg5 {[%clk 0:03:00]}  h6 {[%clk 0:02:38]} 11. Bxf6 {[%clk 0:03:00]}  Qxf6 {[%clk 0:02:39]} 12. Nc4 {[%clk 0:03:01]}  d6 {[%clk 0:02:37]} 13. a3 {[%clk 0:03:01]}  Qd8 {[%clk 0:02:33]} 14. b4 {[%clk 0:03:00]}  b5 {[%clk 0:02:30]} 15. Ne3 {[%clk 0:02:59]}  Be6 {[%clk 0:02:28]} 16. Nd2 {[%clk 0:02:37]}  cxb4 {[%clk 0:02:15]} 17. axb4 {[%clk 0:02:36]}  a5 {[%clk 0:02:15]} 18. bxa5 {[%clk 0:02:37]}  Rxa5 {[%clk 0:02:16]} 19. f4 {[%clk 0:02:33]}  f6 {[%clk 0:02:14]} 20. Nd5 {[%clk 0:02:24]}  Ra4 {[%clk 0:01:58]} 21. Rxa4 {[%clk 0:02:14]}  bxa4 {[%clk 0:01:59]} 22. Ra1 {[%clk 0:02:14]}  exf4 {[%clk 0:01:36]} 23. Nxf4 {[%clk 0:02:04]}  Qb6+ {[%clk 0:01:36]} 24. Qf2 {[%clk 0:02:02]}  Qb2 {[%clk 0:01:31]} 25. Rxa4 {[%clk 0:01:48]}  Qxc3 {[%clk 0:01:32]} 26. Nxe6 {[%clk 0:01:45]}  Rxe6 {[%clk 0:01:33]} 27. Rc4 {[%clk 0:01:34]}  Qa1+ {[%clk 0:01:33]} 28. Qf1 {[%clk 0:01:20]}  Qa7+ {[%clk 0:01:32]} 29. Qf2 {[%clk 0:01:13]}  Qa1+ {[%clk 0:01:31]} 30. Qf1 {[%clk 0:01:11]}  Qa7+ {[%clk 0:01:26]} 31. Kh1 {[%clk 0:01:11]}  Ne5 {[%clk 0:01:25]} 32. d4 {[%clk 0:01:05]}  Nxc4 {[%clk 0:01:22]} 33. Qxc4 {[%clk 0:01:06]}  Qf7 {[%clk 0:01:22]} 34. e5 {[%clk 0:01:05]}  Qe7 {[%clk 0:00:48]} 35. Bd5 {[%clk 0:00:15]}  Kf7 {[%clk 0:00:48]} 36. exd6 {[%clk 0:00:16]}  Qxd6 {[%clk 0:00:46]} 37. Ne4 {[%clk 0:00:16]}  Qd7 {[%clk 0:00:23]} 38. Kg2 {[%clk 0:00:14]}  Bd6 {[%clk 0:00:21]} 39. Nc5 {[%clk 0:00:04]}  Bxc5 {[%clk 0:00:21]} 40. dxc5 {[%clk 0:00:05]}  Ke7 {[%clk 0:00:21]} 41. Bxe6 {[%clk 0:00:05]}  Qxe6 {[%clk 0:00:21]} 42. Qc2 {[%clk 0:00:03]}  Qd5+ {[%clk 0:00:21]} 43. Kf2 {[%clk 0:00:03]}  Qd4+ {[%clk 0:00:20]} 44. Kg2 {[%clk 0:00:04]}  Qd5+ {[%clk 0:00:21]} 45. Kf1 {[%clk 0:00:02]}  Qh1+ {[%clk 0:00:18]} 46. Ke2 {[%clk 0:00:03]}  Qxh2+ {[%clk 0:00:19]} 47. Kd3 {[%clk 0:00:04]}  Qxc2+ {[%clk 0:00:15]} 48. Kxc2 {[%clk 0:00:04]}  Kd7 {[%clk 0:00:16]} 49. Kd3 {[%clk 0:00:05]}  Kc6 {[%clk 0:00:16]} 50. Kd4 {[%clk 0:00:06]}  g6 {[%clk 0:00:16]} 51. Kc4 {[%clk 0:00:06]}  h5 {[%clk 0:00:16]} 52. Kd4 {[%clk 0:00:07]}  g5 {[%clk 0:00:14]} 53. Ke4 {[%clk 0:00:07]}  Kxc5 {[%clk 0:00:13]} 54. Kf5 {[%clk 0:00:08]}  Kd4 {[%clk 0:00:12]} 55. Kxf6 {[%clk 0:00:08]}  h4 {[%clk 0:00:12]} 0-1


[Site "https://www.chess.com"]